bitfinex/quotes_ETHUSD_20250214
["timestamp","ask_amount","ask_price","bid_price","bid_amount"]
[1739558527630,3.61739,2764.5,2764.0,3.61792]
[1739558528344,3.61742,2764.4,2763.9,3.0]
[1739558529255,0.7826,2764.7,2763.7,0.7654]
[1739558529417,0.7826,2764.7,2763.9,3.0]
[1739558529747,3.61768,2764.2,2763.7,8.740319]
[1739558530145,3.61768,2764.2,2763.8,3.0]
[1739558530355,3.61764,2764.3,2763.8,3.0]
[1739558530853,3.61764,2764.3,2763.8,6.61811]
[1739558531000,3.61778,2764.2,2763.8,3.0]
[1739558531202,0.55,2764.6,2763.7,0.7654]
[1739558531403,0.55,2764.6,2763.1,4.15943799]
[1739558531404,3.61834,2763.7,2763.4,0.8321]
[1739558532601,3.61848,2763.6,2763.4,0.8321]
[1739558532805,3.6183,2763.8,2763.1,3.8321]
[1739558533043,3.61872,2763.5,2763.1,0.8321]
[1739558533344,3.61879,2763.4,2763.1,0.8321]
[1739558534056,3.61893,2763.3,2762.2,6.65339239]
[1739558534203,3.61938,2762.9,2762.5,0.8321]
[1739558534409,3.61938,2762.9,2762.2,4.45232]
[1739558534410,4.41718,2762.9,2762.2,4.45232]
[1739558534758,3.61967,2762.7,2762.2,4.45232]
[1739558534938,3.61967,2762.7,2762.2,0.8321]
[1739558534939,3.61986,2762.6,2762.2,0.8321]
[1739558535249,3.61993,2762.5,2762.1,0.005]
[1739558536940,3.6202,2762.3,2762.1,0.005]
[1739558538210,3.62006,2762.4,2762.1,0.005]
[1739558538806,3.6203,2762.2,2762.1,0.005]
[1739558539230,4.1703,2762.2,2762.1,0.005]
[1739558539431,4.9681,2762.2,2762.1,0.005]
[1739558539936,5.70968774,2762.2,2762.1,0.005]
[1739558540142,9.51308613,2762.2,2762.1,0.005]
[1739558541845,9.51308613,2762.2,2761.5,0.1515949]
[1739558541846,4.37808,2761.6,2761.5,0.1515949]
[1739558542547,8.73147839,2761.6,2761.5,4.9e-06]
[1739558543124,4.55557797,2761.6,2761.5,4.9e-06]
[1739558543457,4.37808,2761.6,2761.5,4.9e-06]
[1739558543604,5.66624558,2761.6,2761.5,4.9e-06]
[1739558544017,1.49516558,2761.6,2761.5,4.9e-06]
[1739558544242,3.62096,2761.7,2761.5,4.9e-06]
[1739558544541,3.62108,2761.6,2761.5,4.9e-06]
[1739558544740,4.17108,2761.6,2761.5,4.9e-06]
[1739558545225,4.92808,2761.6,2761.5,4.9e-06]
[1739558545409,8.73147839,2761.6,2761.5,4.9e-06]
[1739558545609,4.92808,2761.6,2761.5,4.9e-06]
[1739558546422,3.62108,2761.6,2761.5,4.9e-06]
[1739558546635,4.37808,2761.6,2761.5,4.9e-06]
[1739558546842,4.55528826,2761.6,2761.5,4.9e-06]
[1739558547219,5.10528826,2761.6,2761.5,4.9e-06]
[1739558550162,4.55528826,2761.6,2761.5,4.9e-06]
[1739558550675,1.2620198,2761.9,2761.5,4.9e-06]
[1739558550676,0.7120198,2761.9,2761.8,3.62082]
[1739558550847,0.757,2763.0,2761.8,0.740142]
[1739558550848,3.61985,2762.6,2761.8,0.740142]
[1739558551151,3.61998,2762.5,2761.9,3.62068]
[1739558551333,3.61971,2762.7,2761.9,3.62068]
[1739558551533,3.61985,2762.6,2761.9,3.62068]
[1739558551778,3.61985,2762.6,2761.9,3.6206]
[1739558552137,3.62004,2762.4,2761.9,3.6206]
[1739558552476,7.23974,2762.6,2761.9,3.6206]
[1739558552859,3.61985,2762.6,2761.7,4.4015]
[1739558553058,7.23974,2762.6,2761.9,3.62069]
[1739558553238,3.61985,2762.6,2761.9,3.62069]
[1739558553567,3.61955,2762.8,2761.7,4.4015]
[1739558553568,0.55,2762.8,2761.7,4.4015]
[1739558553785,3.62045,2762.1,2761.7,0.7806]
[1739558553927,3.62045,2762.1,2761.5,3.6211649]
[1739558554126,0.72286451,2762.2,2761.7,3.62083]
[1739558554384,0.757,2762.4,2761.7,3.62083]
[1739558554561,3.62044,2762.1,2761.5,4.42350839]
[1739558554747,3.62044,2762.1,2761.5,4.9e-06]
[1739558555249,3.62059,2762.0,2761.5,4.9e-06]
[1739558555447,3.62071,2761.9,2761.5,4.9e-06]
[1739558555643,3.62044,2762.1,2761.5,4.9e-06]
[1739558555941,7.24098,2762.1,2761.5,3.6212049]
[1739558556136,3.62044,2762.1,2761.5,3.6212049]
[1739558556343,3.62044,2762.1,2761.5,4.9e-06]
[1739558556585,3.62071,2761.9,2761.5,4.9e-06]
[1739558556942,3.62108,2761.6,2761.5,4.9e-06]
[1739558557264,3.62105,2761.7,2761.5,4.9e-06]
[1739558558059,3.62108,2761.6,2761.5,4.9e-06]
[1739558563331,3.62084,2761.8,2761.5,4.9e-06]
[1739558563537,7.24176,2761.8,2761.5,4.9e-06]
[1739558563735,3.62084,2761.8,2761.5,4.9e-06]
[1739558564459,3.62064,2762.0,2761.5,4.9e-06]
[1739558564660,3.62077,2761.9,2761.5,4.9e-06]
[1739558565074,3.62024,2762.3,2761.7,0.8262]
[1739558565277,0.71785699,2762.5,2761.8,35.0]
[1739558565574,3.62061,2762.0,2761.8,35.0]
[1739558565982,3.62033,2762.2,2761.8,35.0]
[1739558566353,3.62009,2762.4,2761.8,35.0]
[1739558566558,3.62009,2762.4,2761.8,38.62081]
[1739558566769,3.61985,2762.6,2761.8,38.62081]
[1739558566965,3.62013,2762.4,2761.8,38.62075]
[1739558567152,3.62013,2762.4,2761.9,3.62061]
[1739558567481,3.6202,2762.3,2761.8,36.06567998]
[1739558567678,1.52134631,2762.7,2761.8,36.06567998]
[1739558567679,1.52134631,2762.7,2761.8,35.0]
[1739558567883,3.61986,2762.6,2762.0,3.6205]
[1739558568550,3.61986,2762.6,2762.1,4.44656]
[1739558568754,3.62017,2762.3,2762.2,35.0]
[1739558569085,3.61991,2762.5,2762.2,35.0]
[1739558569698,3.62016,2762.4,2762.2,35.0]
[1739558569868,3.61991,2762.5,2762.2,35.0]
[1739558570070,3.61996,2762.5,2762.2,35.0]
[1739558570704,4.3383783,2762.8,2762.2,35.0]
[1739558570907,3.61965,2762.7,2762.2,38.62021]
[1739558571485,4.41834,2763.0,2762.3,3.62004]
[1739558571714,3.61947,2762.9,2762.2,38.62476439]
[1739558571913,3.61955,2762.8,2762.3,3.6201]
[1739558572204,3.61947,2762.9,2762.4,3.61996]
[1739558572352,3.61947,2762.9,2762.5,0.8286]
[1739558572754,3.6196,2762.8,2762.5,0.8286]
[1739558573165,3.61922,2763.1,2762.5,0.8286]
[1739558573166,3.61922,2763.1,2762.5,4.44838]
[1739558573370,3.61938,2762.9,2762.5,0.8286]
[1739558573789,3.61938,2762.9,2762.6,35.0]
[1739558574200,3.61926,2763.0,2762.6,35.0]
[1739558575192,3.61943,2762.9,2762.6,35.0]
[1739558575788,3.61925,2763.0,2762.6,35.0]
[1739558576224,3.61912,2763.1,2762.6,35.0]
[1739558576430,3.61999,2762.5,2762.0,4.44908]
[1739558576778,3.61978,2762.6,2762.1,3.62035]
[1739558577013,3.61978,2762.6,2762.1,38.62035]
[1739558577396,3.61964,2762.7,2762.1,42.24511439]
[1739558577583,3.61964,2762.7,2762.2,3.62023]
[1739558577930,3.62011,2762.4,2762.0,0.8286]
[1739558578136,3.62011,2762.4,2761.5,7.42455329]
[1739558578137,4.44161,2762.4,2761.8,0.8286]
[1739558578282,4.44161,2762.4,2762.1,35.0]
[1739558578283,3.67284404,2762.4,2762.1,35.0]
[1739558578713,0.05273404,2762.4,2762.1,35.0]
[1739558579095,0.8215,2763.1,2762.3,0.8286]
[1739558579310,0.05922017,2762.4,2762.3,0.8286]
[1739558579624,3.61961,2762.8,2762.3,0.8286]
[1739558579625,3.61959,2762.8,2762.3,0.8286]
[1739558579822,3.61969,2762.7,2762.3,0.8286]
[1739558580028,3.67923608,2762.7,2762.3,0.8286]
[1739558580324,3.67923608,2762.7,2762.4,35.0]
[1739558580325,0.05954608,2762.7,2762.4,35.0]
[1739558580489,3.61959,2762.8,2762.4,35.0]
[1739558580672,0.05283329,2762.6,2762.4,35.0]
[1739558580875,3.61959,2762.8,2762.4,35.0]
[1739558581125,3.67264985,2762.7,2762.4,35.0]
[1739558581327,3.61977,2762.6,2762.4,35.0]
[1739558581622,0.05943745,2762.6,2762.4,35.0]
[1739558581939,3.61934,2763.0,2762.5,3.61988]
[1739558582086,3.61908,2763.2,2762.5,3.6199]
[1739558582576,3.61862,2763.5,2763.0,3.61918]
[1739558582777,3.61867,2763.5,2763.0,3.61923]
[1739558583099,3.6182,2763.9,2763.2,0.8286]
[1739558583292,9.35303,2764.0,2763.2,4.44758]
[1739558583293,3.61803,2764.0,2763.2,4.44758]
[1739558583487,0.70592237,2764.2,2763.6,3.61841]
[1739558583787,4.43914,2764.3,2763.8,35.0]
[1739558584017,3.61768,2764.2,2763.8,35.0]
[1739558584217,0.1,2764.8,2763.8,35.0]
[1739558584510,3.61723,2764.6,2764.0,3.61793]
[1739558584881,3.61729,2764.5,2763.8,42.23629]
[1739558585075,3.61724,2764.6,2763.9,7.24273439]
[1739558585515,0.03602886,2764.5,2764.1,3.61776]
[1739558585811,0.03602886,2764.5,2764.2,0.8286]
[1739558586313,3.61732,2764.5,2764.2,0.8286]
[1739558586510,0.03578753,2764.4,2764.2,0.8286]
[1739558586881,0.03578753,2764.4,2764.3,35.0]
[1739558587290,3.61732,2764.5,2764.3,35.0]
[1739558587982,3.61742,2764.4,2764.3,35.0]
[1739558588207,0.7835,2764.4,2763.6,4.38364]
[1739558588407,3.61789,2764.1,2763.6,0.7652]
[1739558588609,3.61766,2764.3,2763.7,38.0]
[1739558588814,3.61765,2764.3,2763.7,41.61828]
[1739558589314,3.61741,2764.5,2763.7,45.24304439]
[1739558589489,3.61757,2764.3,2763.8,3.61819]
[1739558589695,0.03630035,2764.2,2763.8,3.61819]
[1739558589905,3.61757,2764.3,2763.7,6.61825]
[1739558590097,0.03623834,2764.1,2763.9,35.0]
[1739558590484,3.61757,2764.3,2763.9,35.0]
[1739558590685,0.03630035,2764.2,2763.9,35.0]
[1739558590897,3.61757,2764.3,2763.9,35.0]
[1739558591097,0.03623834,2764.1,2763.9,35.0]
[1739558591318,3.61757,2764.3,2763.9,35.0]
[1739558591519,0.03617633,2764.0,2763.9,35.0]
[1739558591720,3.61757,2764.3,2763.9,35.0]
[1739558591918,3.61794,2764.0,2763.9,35.0]
[1739558592423,0.03617633,2764.0,2763.9,35.0]
[1739558592887,3.6178,2764.2,2763.9,35.0]
[1739558593087,0.03623834,2764.1,2763.9,35.0]
[1739558593288,3.65404834,2764.1,2763.9,35.0]
[1739558593484,3.61794,2764.0,2763.9,35.0]
[1739558593722,3.6539266,2764.0,2763.9,35.0]
[1739558594030,4.2039266,2764.0,2763.9,35.0]
[1739558595022,3.6539266,2764.0,2763.9,35.0]
[1739558595725,0.0359866,2764.0,2763.9,35.0]
[1739558596026,3.61753,2764.4,2763.9,39.3853]
[1739558596225,0.0357267,2764.0,2763.9,35.7673]
[1739558596519,3.61753,2764.4,2763.9,39.3853]
[1739558596721,3.61759,2764.3,2763.9,35.7673]
[1739558597722,3.61793,2764.1,2763.9,35.7673]
[1739558597898,3.61794,2764.0,2763.9,35.0]
[1739558598297,4.16794,2764.0,2763.9,35.0]
[1739558601235,4.34435695,2764.0,2763.9,35.0]
[1739558603811,3.79435695,2764.0,2763.9,35.0]
[1739558604637,0.73019582,2764.2,2763.9,35.0]
[1739558604810,4.34789582,2764.2,2763.9,35.0]
[1739558605804,7.96565582,2764.2,2763.9,35.0]
[1739558606441,3.61783,2764.1,2763.9,35.0]
[1739558606613,3.61794,2764.0,2763.9,35.0]
[1739558606812,3.61783,2764.1,2763.9,35.0]
[1739558607811,0.73019582,2764.2,2763.9,35.0]
[1739558608013,3.61748,2764.4,2764.0,0.781]
[1739558608541,7.23447,2764.6,2764.0,4.435067]
[1739558608732,3.61702,2764.7,2764.2,3.61767]
[1739558609417,0.28137197,2764.8,2764.3,3.6175]
[1739558609742,0.34057017,2764.8,2764.5,0.781]
[1739558609920,0.34057017,2764.8,2764.6,35.0]
[1739558610116,0.1591982,2764.8,2764.6,35.0]
[1739558610922,0.1591982,2764.8,2764.7,4.39802]
[1739558611420,0.1,2764.8,2764.7,4.39802]
[1739558611621,0.15946183,2764.8,2764.7,39.39802]
[1739558612131,0.1,2764.8,2764.7,39.39802]
[1739558612920,0.1,2764.8,2764.7,35.781]
[1739558613117,0.1,2764.8,2764.7,39.40576439]
[1739558613329,0.1,2764.8,2764.7,43.02278439]
[1739558614842,0.1,2764.8,2764.7,39.40576439]
[1739558615847,0.1,2764.8,2764.7,35.0]
[1739558616055,3.71689,2764.8,2764.7,35.0]
[1739558616217,3.76462286,2764.8,2764.7,35.0]
[1739558619128,3.76462286,2764.8,2764.3,4.39847]
[1739558619449,3.76462286,2764.8,2764.3,0.781]
[1739558619620,3.76462286,2764.8,2764.7,35.0]
[1739558620251,0.14773286,2764.8,2764.7,35.0]
[1739558620550,0.1,2764.8,2764.7,35.0]
[1739558620742,0.14773286,2764.8,2764.7,35.0]
[1739558621523,3.76462286,2764.8,2764.7,35.0]
[1739558622247,0.14773286,2764.8,2764.7,35.0]
[1739558622732,3.76462286,2764.8,2764.7,35.0]
[1739558625957,4.54212286,2764.8,2764.7,35.0]
[1739558626357,5.09212286,2764.8,2764.7,35.0]
[1739558627235,3.61807,2763.9,2763.8,3.0]
[1739558627430,3.61794,2764.0,2763.1,0.8209]
[1739558627620,3.61871,2763.5,2763.1,0.8209]
[1739558627825,3.61871,2763.5,2763.1,1.264926]
[1739558628128,3.61859,2763.5,2763.4,35.0]
[1739558628327,0.55,2764.1,2763.4,35.0]
[1739558628533,3.61799,2764.0,2763.6,0.8209]
[1739558629143,3.61799,2764.0,2763.9,35.0]
[1739558631259,4.94549,2764.0,2763.9,35.0]
[1739558631764,7.97884879,2764.0,2763.9,35.0]
[1739558632364,4.94549,2764.0,2763.9,35.0]
[1739558632769,4.39549,2764.0,2763.9,35.0]
[1739558633759,3.61799,2764.0,2763.9,35.0]
[1739558634461,3.61764,2764.3,2763.9,38.57911]
[1739558634648,1.26942393,2764.4,2763.9,3.57911]
[1739558634649,3.61794,2764.0,2763.9,3.57911]
[1739558634854,3.61794,2764.0,2763.7,0.7911]
[1739558634855,3.61794,2764.0,2763.7,3.7911]
[1739558635051,3.61794,2764.0,2763.9,35.0]
[1739558635360,3.61784,2764.1,2763.9,35.0]
[1739558635567,3.61784,2764.1,2763.7,3.7911]
[1739558635982,3.61784,2764.1,2764.0,35.0]
[1739558637486,3.61781,2764.1,2764.0,35.0]
[1739558638381,4.95731,2764.1,2764.0,35.0]
[1739558639073,4.40731,2764.1,2764.0,35.0]
[1739558642472,3.61874,2763.4,2763.2,0.7911]
[1739558642945,3.61874,2763.4,2763.3,35.0]
[1739558644579,4.16874,2763.4,2763.3,35.0]
[1739558645118,3.61981,2762.6,2762.1,0.7911]
[1739558645265,3.61981,2762.6,2762.2,0.441155]
[1739558645466,3.62005,2762.4,2762.3,35.0]
[1739558645690,3.61981,2762.6,2762.3,35.0]
[1739558645901,3.61992,2762.5,2762.3,35.0]
[1739558646271,7.23967,2762.6,2762.3,35.0]
[1739558646471,3.61993,2762.5,2762.3,35.0]
[1739558646691,3.62004,2762.4,2762.3,35.0]
[1739558646896,3.61981,2762.6,2762.3,35.0]
[1739558647097,3.61993,2762.5,2762.3,35.0]
[1739558647501,3.61981,2762.6,2762.2,0.441155]
[1739558647702,3.61993,2762.5,2762.2,0.441155]
[1739558647891,3.61993,2762.5,2762.1,0.82729976]
[1739558648462,3.61981,2762.6,2762.1,0.82729974]
[1739558648668,3.61906,2763.2,2762.6,3.61971]
[1739558648869,7.23812,2763.2,2762.8,0.8246]
[1739558649116,3.61912,2763.1,2762.8,0.8246]
[1739558649300,3.79635015,2763.4,2762.8,1.269031]
[1739558649474,3.79635015,2763.4,2762.9,3.03619092]
[1739558649679,3.61874,2763.4,2762.9,3.03619092]
[1739558650303,4.32907446,2763.7,2763.1,0.8246]
[1739558650467,4.32907446,2763.7,2763.2,7.27407454]
[1739558650673,4.32907446,2763.7,2763.2,0.03618454]
[1739558650896,4.32907446,2763.7,2763.1,4.89170409]
[1739558650897,3.61848,2763.6,2763.1,4.89170409]
[1739558651082,0.71073446,2763.7,2763.5,3.61859]
[1739558651270,3.61815,2763.9,2763.6,0.8246]
[1739558652601,0.17974458,2764.1,2763.6,1.268932]
[1739558652767,3.79762458,2764.1,2763.7,0.0361796]
[1739558652964,3.61794,2764.0,2763.6,1.268932]
[1739558653167,0.17974458,2764.1,2763.7,0.03617965]
[1739558653397,3.79760458,2764.1,2763.7,0.03617965]
[1739558653968,3.61763,2764.3,2763.8,3.61812]
[1739558654302,3.61744,2764.4,2764.0,0.8246]
[1739558654487,3.61739,2764.5,2763.9,3.61799]
[1739558655209,7.2348,2764.5,2763.9,3.61799]
[1739558655382,7.23476,2764.5,2763.9,3.61799]
[1739558655570,3.61737,2764.5,2763.9,4.50331072]
[1739558655770,7.23474,2764.5,2763.9,0.88532072]
[1739558655998,3.61737,2764.5,2763.9,4.50327072]
[1739558656212,3.61737,2764.5,2763.9,0.92149434]
[1739558656390,7.23423,2764.7,2764.1,3.61773]
[1739558656597,3.61723,2764.6,2764.2,0.8246]
[1739558656767,3.61729,2764.5,2764.2,0.8246]
[1739558656972,3.6171,2764.7,2764.2,0.8246]
[1739558657387,3.61731,2764.5,2764.2,0.8246]
[1739558658197,3.61748,2764.4,2764.2,0.8246]
[1739558658406,3.61731,2764.5,2764.2,0.8246]
[1739558658723,3.61707,2764.7,2764.2,0.8246]
[1739558658926,3.61723,2764.6,2764.2,0.8246]
[1739558659391,3.61707,2764.7,2764.3,0.444239]
[1739558659716,3.61724,2764.6,2764.3,0.444239]
[1739558660417,3.61748,2764.4,2764.2,0.8246]
[1739558660843,0.7664,2764.6,2763.9,0.8246]
[1739558661132,0.7664,2764.6,2763.6,3.61838]
[1739558661133,3.61783,2764.1,2763.6,3.61838]
[1739558661285,3.61783,2764.1,2763.7,3.0]
[1739558661682,3.61799,2764.0,2763.5,6.61853]
[1739558661913,3.61765,2764.3,2763.7,3.0]
[1739558662213,3.61765,2764.3,2763.8,0.03617796]
[1739558662413,3.79715933,2764.6,2763.9,4.3996]
[1739558662414,3.61746,2764.4,2763.9,4.3996]
[1739558662783,3.61756,2764.3,2763.9,0.7816]
[1739558663618,3.61762,2764.3,2763.9,0.7816]
[1739558663816,3.61784,2764.1,2763.9,0.7816]
[1739558663990,0.55,2764.5,2763.6,0.8324]
[1739558664191,0.55,2764.5,2763.1,0.44800409]
[1739558664192,3.61833,2763.8,2763.3,0.8324]
[1739558664438,3.61844,2763.7,2763.3,0.8324]
[1739558664584,4.41887,2764.0,2763.4,0.03618268]
[1739558664785,3.61808,2763.9,2763.4,6.61866]
[1739558665011,3.61825,2763.8,2763.4,3.0]
[1739558665205,7.23654,2763.8,2763.3,4.94113341]
[1739558665382,3.61825,2763.8,2763.3,4.94113341]
[1739558665587,3.61825,2763.8,2763.4,3.49411334]
[1739558665782,3.61828,2763.8,2763.4,3.49411334]
[1739558666118,3.61836,2763.7,2763.4,3.49411334]
[1739558666313,3.6182,2763.9,2763.4,3.49411334]
[1739558666541,3.61794,2764.0,2763.4,7.11282334]
[1739558666718,3.61794,2764.0,2763.5,1.67591668]
[1739558667020,4.16761,2764.3,2763.5,1.67591668]
[1739558667205,3.61817,2763.9,2763.5,1.67591668]
[1739558667611,7.23635,2763.9,2763.5,1.67591668]
[1739558667921,3.61823,2763.8,2763.5,1.67591668]
[1739558668429,3.61817,2763.9,2763.5,1.67591668]
[1739558668623,3.6182,2763.8,2763.5,1.67591668]
[1739558669487,3.61837,2763.7,2763.5,1.67591668]
[1739558670604,3.61837,2763.7,2763.2,3.61887]
[1739558670605,3.61875,2763.4,2763.2,0.8324]
[1739558670926,3.61886,2763.3,2763.2,0.8324]
[1739558671291,3.61867,2763.5,2763.2,0.8324]
[1739558671487,3.61879,2763.4,2763.2,0.8324]
[1739558671818,4.41894,2763.9,2763.2,0.8324]
[1739558671819,3.6182,2763.8,2763.2,0.8324]
[1739558672019,3.6182,2763.8,2763.3,4.063974]
[1739558672225,3.61839,2763.7,2763.3,3.445144]
[1739558673099,3.61852,2763.6,2763.3,0.445144]
[1739558673726,3.61836,2763.7,2763.3,0.445144]
[1739558674322,3.61848,2763.6,2763.3,0.445144]
[1739558675612,1.71725563,2764.2,2763.4,0.4277544]
[1739558675926,1.71725563,2764.2,2763.3,0.445144]
[1739558675927,3.61813,2763.9,2763.5,4.45098]
[1739558676133,3.61785,2764.1,2763.6,3.61845]
[1739558676421,3.61808,2763.9,2763.5,3.8324]
[1739558676625,3.61808,2763.9,2763.5,0.8324]
[1739558676829,3.61808,2763.9,2763.5,4.45098]
[1739558677031,3.61808,2763.9,2763.6,0.445098]
[1739558677325,3.61789,2764.1,2763.6,7.063558]
[1739558677650,3.61814,2763.9,2763.6,0.445098]
[1739558678223,3.61814,2763.9,2763.6,3.445098]
[1739558678414,3.61814,2763.9,2763.6,0.445098]
[1739558678630,3.61814,2763.9,2763.5,3.8324]
[1739558679405,3.61789,2764.1,2763.7,3.0]
[1739558679639,3.61794,2764.0,2763.6,3.0]
[1739558680640,3.61789,2764.1,2763.6,3.0]
[1739558680839,3.61803,2764.0,2763.6,3.0]
[1739558681046,3.61803,2764.0,2763.6,3.745091]
[1739558681413,3.61769,2764.2,2763.6,0.745091]
[1739558681599,3.61769,2764.2,2763.7,3.03617694]
[1739558681600,3.61787,2764.1,2763.7,3.03617694]
[1739558681844,3.61766,2764.3,2763.8,0.7992]
[1739558682053,3.61755,2764.3,2763.9,3.0]
[1739558682194,3.61774,2764.2,2763.9,3.0]
[1739558682549,3.61787,2764.1,2763.9,3.0]
[1739558683749,3.61769,2764.2,2763.9,3.0]
[1739558683981,3.61781,2764.1,2763.9,0.741747]
[1739558684997,3.61781,2764.1,2763.8,0.7992]
[1739558685298,3.61781,2764.1,2764.0,35.0]
[1739558695519,4.16781,2764.1,2764.0,35.0]
[1739558695813,4.99581,2764.1,2764.0,35.0]
[1739558696019,3.61899,2763.2,2763.1,0.7523]
[1739558696224,3.61928,2763.0,2762.6,0.7523]
[1739558696518,7.23864,2763.0,2762.6,1.189508]
[1739558696819,3.61928,2763.0,2762.6,4.189508]
[1739558697019,3.61928,2763.0,2762.9,35.0]
[1739558700272,4.16928,2763.0,2762.9,35.0]
[1739558700522,7.20003933,2763.0,2762.9,35.0]
[1739558701521,4.16928,2763.0,2762.9,35.0]
[1739558701686,3.61928,2763.0,2762.9,35.0]
[1739558701892,7.2381,2763.2,2762.9,39.2523]
[1739558702090,3.61849,2763.6,2762.9,3.5]
[1739558702091,3.61925,2763.0,2762.9,3.5]
[1739558702430,3.61849,2763.6,2762.9,0.7523]
[1739558702724,4.44599,2764.0,2762.9,0.7523]
[1739558702725,3.61832,2763.8,2763.2,4.37118]
[1739558702870,3.61788,2764.1,2763.2,0.7523]
[1739558703078,3.61814,2763.9,2763.3,4.055885]
[1739558703330,3.61814,2763.9,2763.4,3.0]
[1739558703506,3.03075933,2764.6,2763.8,35.7523]
[1739558703817,3.61724,2764.6,2763.9,3.0]
[1739558704023,3.61744,2764.4,2763.9,0.737042]
[1739558704422,3.61719,2764.6,2764.3,35.0]
[1739558704798,3.61742,2764.4,2764.3,35.0]
[1739558704986,7.23446,2764.6,2764.3,35.0]
[1739558705180,3.61719,2764.6,2764.3,35.0]
[1739558705387,0.1,2764.8,2764.4,0.78847159]
[1739558705388,3.71695,2764.8,2764.4,0.78847159]
[1739558705735,0.1,2764.8,2764.4,0.7523]
[1739558706045,0.1,2764.8,2764.5,0.03616809]
[1739558706482,3.71693,2764.8,2764.4,0.7523]
[1739558706680,0.1,2764.8,2764.5,3.61719]
[1739558706884,0.1,2764.8,2764.7,4.36932]
[1739558707179,0.1,2764.8,2764.7,7.36932]
[1739558709518,3.61602,2765.5,2764.8,4.44818]
[1739558709719,3.61602,2765.5,2765.4,35.0]
[1739558709919,3.61575,2765.7,2765.4,35.0]
[1739558710141,3.61517,2766.2,2765.5,3.61594]
[1739558710296,3.61528,2766.1,2765.5,0.03615666]
[1739558710506,3.61558,2765.9,2765.4,0.8313]
[1739558710848,3.6156,2765.8,2765.6,35.0]
[1739558710983,3.61558,2765.9,2765.6,35.0]
[1739558711335,3.61537,2766.0,2765.6,35.0]
[1739558712106,3.61521,2766.1,2765.6,35.0]
[1739558712303,3.61548,2765.9,2765.6,35.0]
[1739558712497,7.23051,2766.1,2765.6,35.0]
[1739558712752,3.61503,2766.3,2765.6,38.61583]
[1739558713061,3.61507,2766.2,2765.6,3.61577]
[1739558713200,3.6146,2766.6,2765.9,0.8313]
[1739558713400,5.12487841,2766.8,2766.0,0.03614851]
[1739558713656,3.61446,2766.7,2766.1,38.61516]
[1739558713807,3.61466,2766.6,2766.1,35.0]
[1739558714357,3.61416,2766.9,2766.2,0.8313]
[1739558714663,3.61415,2766.9,2766.3,4.44613]
[1739558714948,3.61415,2766.9,2766.6,35.0]
[1739558715152,3.79563746,2767.4,2766.6,35.0]
[1739558715317,3.61441,2766.7,2766.6,35.0]
[1739558717053,3.61598,2765.5,2765.4,0.8313]
[1739558717205,3.61658,2765.1,2764.8,0.8313]
[1739558717403,3.61608,2765.5,2764.8,3.8313]
[1739558717703,3.61626,2765.3,2764.9,0.03615984]
[1739558717901,1.3305,2766.1,2764.9,0.03615984]
[1739558717902,3.61579,2765.7,2765.0,3.61662]
[1739558718098,3.61579,2765.7,2765.1,4.48386705]
[1739558718335,3.61598,2765.5,2765.1,0.8313]
[1739558718542,3.61637,2765.2,2765.1,0.8313]
[1739558718904,0.184081,2765.5,2765.1,35.0]
[1739558719201,3.61637,2765.2,2765.1,35.0]
[1739558720043,4.39687,2765.2,2765.1,35.0]
[1739558720759,3.61637,2765.2,2765.1,35.0]
[1739558722436,3.61624,2765.3,2765.1,35.0]
[1739558722608,3.61663,2765.0,2764.9,0.8111]
[1739558723021,3.61663,2765.0,2764.9,35.8111]
[1739558724311,3.6165,2765.1,2764.9,35.8111]
[1739558724507,3.61663,2765.0,2764.9,0.8111]
[1739558724928,3.6165,2765.1,2764.9,35.8111]
[1739558725380,3.61628,2765.3,2764.9,0.8111]
[1739558725662,3.61628,2765.3,2764.3,2.0]
[1739558725663,3.61587,2765.6,2765.1,0.8111]
[1739558725818,3.61587,2765.6,2765.5,35.0]
[1739558731428,4.44767,2765.6,2765.5,35.0]
[1739558734272,3.61587,2765.6,2765.5,35.0]
[1739558739104,3.61573,2765.7,2765.5,35.0]
[1739558739404,3.61573,2765.7,2765.1,4.42759]
[1739558739700,3.61585,2765.6,2765.1,5.53485002]
[1739558740085,3.61573,2765.7,2765.1,5.53485002]
[1739558740246,3.61573,2765.7,2765.6,35.0]
[1739558744461,3.6156,2765.8,2765.6,35.0]
[1739558744664,3.61546,2765.9,2765.6,35.0]
[1739558745007,3.61559,2765.8,2765.6,35.7674]
[1739558745704,3.61534,2766.0,2765.6,35.7674]
[1739558745860,3.61493,2766.3,2765.8,3.61555]
[1739558746049,3.61493,2766.3,2765.9,0.7674]
[1739558746585,7.23026,2766.2,2765.9,0.7674]
[1739558746785,3.61532,2766.0,2765.9,0.7674]
[1739558746988,3.61532,2766.0,2765.9,35.0]
[1739558747165,3.61521,2766.1,2765.9,35.0]
[1739558747346,3.61521,2766.1,2765.5,0.7674]
[1739558747550,3.61539,2766.0,2765.5,0.7674]
[1739558747752,3.61539,2766.0,2765.6,3.0]
[1739558748256,3.61521,2766.1,2765.6,3.0]
[1739558748483,3.6147,2766.5,2765.7,3.65186289]
[1739558748654,3.61521,2766.1,2765.8,0.7674]
[1739558748849,3.61535,2766.0,2765.4,3.61604]
[1739558749079,3.61535,2766.0,2765.6,3.0]
[1739558749478,3.61549,2765.9,2765.6,3.0]